[Event "World Junior U20 Girls 2018"]
[Site "Gebze"]
[Date "2018.09.07"]
[Round "3"]
[White "Huttl, Sofie"]
[Black "Doroy Allaney Jia G"]
[Result "0-1"]
[ECO "C50"]
[WhiteElo "1727"]
[BlackElo "1914"]
[Annotator "NA"]
[PlyCount "92"]
[EventDate "2018.09.05"]
[EventType "swiss"]
[EventCountry "TUR"]
[SourceTitle "playchess.com"]
[Source "ChessBase"]
[SourceQuality "1"]
[TimeControl "40/5400+30:1800+30"]

1. e4 {[%emt 0:00:30]} e5 {[%emt 0:00:30]} 2. Nf3 {[%emt 0:00:30]} Nf6 {[%emt 0:00:00]} 3. Nc3 {[%emt 0:01:30]} Nc6 {[%emt 0:00:00]} 4. Bc4 {[%emt 0:00:00]} Bc5 {[%emt 0:00:30]} 5. d3 {[%emt 0:01:00]} h6 {[%emt 0:00:30]} 6. O-O {[%emt 0:00:30]} O-O {[%emt 0:01:30]} 7. h3 {[%emt 0:03:30]} d6 {[%emt 0:00:30]} 8. Be3 {[%emt 0:00:30]} Bb6 {[%emt 0:03:30]} 9. Bxb6 {[%emt 0:05:30]} axb6 {[%emt 0:01:30]} 10. d4 {[%emt 0:08:30]} exd4 {[%emt 0:12:30]} 11. Nxd4 {[%emt 0:00:30]} Bd7 {[%emt 0:21:30]} 12. Bb5 $11 {[%emt 0:36:00]} Qe8 {[%emt 0:08:30]} 13. Nxc6 {[%emt 0:01:30]} bxc6 {[%emt 0:00:30]} 14. Bd3 {[%emt 0:00:30]} b5 {[%emt 0:01:30]} 15. Qf3 {[%emt 0:09:30]} b4 {[%emt 0:06:30]} 16. Ne2 {[%emt 0:00:30]} Qe5 {[%emt 0:00:30]} 17. Rfb1 {[%emt 0:07:30]} c5 {[%emt 0:02:30]} 18. Qf4 {[%emt 0:03:30]} Be6 {[%emt 0:21:30]} 19. Qxe5 {[%emt 0:00:30]} dxe5 {[%emt 0:00:00]} 20. b3 {[%emt 0:06:30]} Ne8 {[%emt 0:01:00]} 21. c3 {[%emt 0:00:30]} Nd6 {[%emt 0:00:30]} 22. cxb4 {[%emt 0:00:30]} cxb4 {[%emt 0:00:30]} 23. Rc1 {[%emt 0:00:30]} Ra7 {[%emt 0:00:30]} 24. f3 {[%emt 0:00:30]} Rfa8 {[%emt 0:00:30]} 25. Rc2 {[%emt 0:10:30]} Bxb3 {[%emt 0:04:30]} 26. Rb2 {[%emt 0:00:30]} Bxa2 {[%emt 0:00:30]} 27. Rxb4 {[%emt 0:00:00]} Ra3 {[%emt 0:02:30]} 28. Bb1 {[%emt 0:03:00]} Be6 {[%emt 0:03:30]} 29. Rxa3 {[%emt 0:01:30]} Rxa3 {[%emt 0:00:00]} 30. Kf2 {[%emt 0:00:30]} c5 {[%emt 0:01:00]} 31. Rb6 {[%emt 0:01:30]} Nc4 {[%emt 0:00:00]} 32. Rb5 {[%emt 0:01:41]} Ra5 {[%emt 0:09:56]} 33. Rxa5 {[%emt 0:02:03]} Nxa5 {[%emt 0:00:02]} 34. Ke3 {[%emt 0:00:00]} Kf8 {[%emt 0:00:34]} 35. Kd2 {[%emt 0:01:41]} Ke7 {[%emt 0:00:49]} 36. Nc3 {[%emt 0:02:13]} Kd6 {[%emt 0:00:53]} 37. Nb5+ {[%emt 0:01:18]} Kc6 {[%emt 0:00:40]} 38. Nc3 {[%emt 0:01:13]} c4 {[%emt 0:00:29]} 39. Nd1 {[%emt 0:00:56]} Kc5 {[%emt 0:01:12]} 40. Kc3 {[%emt 0:00:00]} Nc6 {[%emt 0:00:00]} 41. Ne3 {[%emt 0:02:55]} Nd4 {[%emt 0:00:55]} 42. Ba2 {[%emt 0:01:30]} Nb5+ {[%emt 0:01:30]} 43. Kc2 {[%emt 0:00:30]} Kd4 {[%emt 0:00:30]} 44. Nd1 {[%emt 0:01:30]} f5 {[%emt 0:01:30]} 45. Nb2 {[%emt 0:00:30]} fxe4 {[%emt 0:01:30]} 46. fxe4 {[%emt 0:00:30]} Nc3 {[%emt 0:01:30]} 0-1

[Event "World Junior U20 Girls 2018"]
[Site "Gebze"]
[Date "2018.09.07"]
[Round "3"]
[White "Incecik, Seyma Zeynep"]
[Black "Meenal Gupta"]
[Result "0-1"]
[ECO "A30"]
[WhiteElo "1716"]
[BlackElo "1963"]
[Annotator "NA"]
[PlyCount "146"]
[EventDate "2018.09.05"]
[EventType "swiss"]
[EventCountry "TUR"]
[SourceTitle "playchess.com"]
[Source "ChessBase"]
[SourceQuality "1"]
[TimeControl "40/5400+30:1800+30"]

1. b3 c5 2. Bb2 b6 3. Nf3 Bb7 4. e3 e6 5. Be2 Nf6 6. O-O Be7 7. c4 O-O 8. d4 cxd4 9. Nxd4 a6 10. Nc3 d6 11. Bf3 Qc7 12. Bxb7 Qxb7 {[%emt 0:21:00]} 13. Qf3 {[%emt 0:30:30]} Qxf3 {[%emt 0:00:30]} 14. Nxf3 {[%emt 0:02:30]} Nbd7 {[%emt 0:04:30]} 15. Ba3 {[%emt 0:04:30]} Rfc8 {[%emt 0:13:30]} 16. Rac1 {[%emt 0:04:30]} Rab8 {[%emt 0:06:30]} 17. Rfd1 {[%emt 0:04:30]} Nc5 {[%emt 0:00:30]} 18. Nd4 {[%emt 0:00:30]} Kf8 {[%emt 0:02:30]} 19. Kf1 {[%emt 0:01:30]} Ng4 {[%emt 0:07:30]} 20. h3 {[%emt 0:04:30]} Nf6 {[%emt 0:08:30]} 21. Ke2 {[%emt 0:04:30]} Nfe4 {[%emt 0:00:30]} 22. Nxe4 {[%emt 0:04:30]} Nxe4 {[%emt 0:00:30]} 23. Kf1 {[%emt 0:01:30]} Ke8 {[%emt 0:01:30]} 24. Ne2 {[%emt 0:10:30]} Rb7 {[%emt 0:06:30]} 25. Nf4 {[%emt 0:03:30]} Rbc7 {[%emt 0:03:30]} 26. Nd3 {[%emt 0:11:25]} b5 {[%emt 0:06:04]} 27. cxb5 {[%emt 0:01:49]} axb5 {[%emt 0:00:32]} 28. Bb2 {[%emt 0:02:25]} f6 {[%emt 0:01:49]} 29. Rxc7 {[%emt 0:00:56]} Rxc7 {[%emt 0:00:30]} 30. Rc1 {[%emt 0:00:30]} Ra7 {[%emt 0:01:48]} 31. Ra1 {[%emt 0:00:53]} d5 {[%emt 0:00:17]} 32. Ke2 {[%emt 0:03:04]} b4 {[%emt 0:02:21]} 33. f3 {[%emt 0:03:08]} Ng5 {[%emt 0:00:41]} 34. Bd4 {[%emt 0:01:11]} Ra5 {[%emt 0:00:04]} 35. Bb6 {[%emt 0:00:32]} Rb5 {[%emt 0:00:05]} 36. Bd4 {[%emt 0:00:16]} e5 {[%emt 0:01:33]} 37. Bb2 {[%emt 0:00:07]} Ne6 {[%emt 0:00:00]} 38. Rd1 {[%emt 0:01:54]} g5 {[%emt 0:02:00]} 39. Rd2 {[%emt 0:00:42]} h5 {[%emt 0:00:35]} 40. g4 {[%emt 0:00:00]} h4 {[%emt 0:00:00]} 41. Ne1 {[%emt 0:08:08]} Ra5 {[%emt 0:03:41]} 42. Ba1 {[%emt 0:00:30]} Nc5 {[%emt 0:03:30]} 43. Ng2 {[%emt 0:07:34]} Kf7 {[%emt 0:03:30]} 44. f4 {[%emt 0:03:58]} Ke6 {[%emt 0:02:30]} 45. f5+ {[%emt 0:07:06]} Kf7 {[%emt 0:00:30]} 46. Rc2 {[%emt 0:03:55]} Nxb3 {[%emt 0:02:30]} 47. axb3 {[%emt 0:04:00]} Rxa1 {[%emt 0:00:30]} 48. Rd2 {[%emt 0:00:00]} Rb1 {[%emt 0:01:30]} 49. Rxd5 {[%emt 0:00:50]} Rxb3 {[%emt 0:00:30]} 50. Rd3 {[%emt 0:00:16]} Ra3 {[%emt 0:00:30]} 51. Rxa3 {[%emt 0:00:46]} bxa3 {[%emt 0:00:30]} 52. Ne1 {[%emt 0:00:00]} a2 {[%emt 0:00:30]} 53. Nc2 {[%emt 0:00:00]} Ba3 {[%emt 0:00:00]} 54. Kd3 {[%emt 0:01:06]} Bb2 {[%emt 0:00:00]} 55. Kc4 {[%emt 0:00:34]} a1=Q {[%emt 0:00:30]} 56. Nxa1 {[%emt 0:00:00]} Bxa1 {[%emt 0:00:00]} 57. Kb3 {[%emt 0:00:10]} Ke7 {[%emt 0:00:00]} 58. Kc4 {[%emt 0:00:06]} Kd6 {[%emt 0:00:30]} 59. e4 {[%emt 0:00:00]} Kc6 {[%emt 0:00:00]} 60. Kd3 {[%emt 0:00:09]} Kc5 {[%emt 0:00:00]} 61. Ke3 {[%emt 0:00:30]} Kc4 {[%emt 0:00:00]} 62. Kf3 {[%emt 0:00:00]} Kd3 {[%emt 0:00:00]} 63. Kg2 {[%emt 0:00:11]} Kxe4 {[%emt 0:00:30]} 64. Kf2 {[%emt 0:00:00]} Kd3 {[%emt 0:00:00]} 65. Kf3 {[%emt 0:00:00]} e4+ {[%emt 0:00:00]} 66. Kf2 {[%emt 0:00:07]} e3+ {[%emt 0:00:00]} 67. Kf1 {[%emt 0:00:00]} e2+ {[%emt 0:00:00]} 68. Kg2 {[%emt 0:00:00]} e1=Q {[%emt 0:00:00]} 69. Kh2 {[%emt 0:00:00]} Be5+ {[%emt 0:00:00]} 70. Kg2 {[%emt 0:00:00]} Qe2+ {[%emt 0:00:30]} 71. Kg1 {[%emt 0:00:00]} Bd4+ {[%emt 0:00:30]} 72. Kh1 {[%emt 0:00:00]} Qf1+ {[%emt 0:00:30]} 73. Kh2 {[%emt 0:00:00]} Be5# {[%emt 0:00:00]} 0-1

[Event "World Junior U20 Girls 2018"]
[Site "Gebze"]
[Date "2018.09.07"]
[Round "3"]
[White "Esti, Kubra Selenay"]
[Black "Malatsilava, Volha"]
[Result "0-1"]
[ECO "C13"]
[WhiteElo "1662"]
[BlackElo "2040"]
[Annotator "NA"]
[PlyCount "89"]
[EventDate "2018.09.05"]
[EventType "swiss"]
[EventCountry "TUR"]
[SourceTitle "playchess.com"]
[Source "ChessBase"]
[SourceQuality "1"]
[TimeControl "40/5400+30:1800+30"]

1. d4 Nf6 2. Nc3 d5 3. Bg5 e6 4. e4 dxe4 5. Nxe4 Be7 6. Nxf6+ Bxf6 7. Bxf6 Qxf6 8. Nf3 O-O 9. Bd3 c5 {[%emt 0:16:30]} 10. c3 {[%emt 0:34:00]} cxd4 {[%emt 0:00:30]} 11. Nxd4 {[%emt 0:02:30]} e5 {[%emt 0:03:30]} 12. Ne2 {[%emt 0:04:30]} Nc6 {[%emt 0:09:30]} 13. Qc2 {[%emt 0:04:30]} Qh6 {[%emt 0:02:30]} 14. O-O {[%emt 0:14:30]} f5 {[%emt 0:01:30]} 15. f4 {[%emt 0:06:30]} e4 {[%emt 0:01:30]} 16. Bc4+ {[%emt 0:00:30]} Be6 {[%emt 0:03:30]} 17. Qb3 {[%emt 0:02:30]} Bxc4 {[%emt 0:01:30]} 18. Qxc4+ {[%emt 0:00:30]} Kh8 {[%emt 0:00:30]} 19. Rad1 {[%emt 0:00:30]} Rad8 {[%emt 0:00:30]} 20. Qb5 {[%emt 0:00:30]} Qf6 {[%emt 0:00:30]} 21. Ng3 {[%emt 0:08:30]} g6 {[%emt 0:07:30]} 22. Qxb7 {[%emt 0:00:30]} Rd3 {[%emt 0:13:30]} 23. Qa6 {[%emt 0:06:59]} Rfd8 {[%emt 0:01:30]} 24. Rde1 {[%emt 0:01:10]} Qd6 {[%emt 0:00:30]} 25. Ne2 {[%emt 0:02:23]} Qc5+ {[%emt 0:00:30]} 26. Kh1 {[%emt 0:00:42]} Rd2 {[%emt 0:06:00]} 27. b4 {[%emt 0:01:35]} Qd5 {[%emt 0:00:30]} 28. b5 {[%emt 0:01:50]} Nb8 {[%emt 0:00:30]} 29. Qxa7 {[%emt 0:00:33]} Qxb5 {[%emt 0:01:00]} 30. Nd4 {[%emt 0:02:26]} Qd5 {[%emt 0:02:30]} 31. Qb6 {[%emt 0:01:43]} Rf8 {[%emt 0:09:30]} 32. Qb4 {[%emt 0:01:18]} Re8 {[%emt 0:02:30]} 33. Qb3 {[%emt 0:01:07]} Qd7 {[%emt 0:01:30]} 34. Re3 {[%emt 0:01:03]} Na6 {[%emt 0:00:56]} 35. a4 {[%emt 0:01:06]} Rb8 {[%emt 0:01:30]} 36. Qc4 {[%emt 0:00:59]} Nc7 {[%emt 0:00:42]} 37. Rfe1 {[%emt 0:01:10]} Nd5 {[%emt 0:01:23]} 38. R3e2 {[%emt 0:01:00]} e3 {[%emt 0:02:41]} 39. Nb5 {[%emt 0:00:53]} Rc8 {[%emt 0:01:58]} 40. Qb3 {[%emt 0:00:00]} Nxf4 {[%emt 0:00:00]} 41. Rxe3 {[%emt 0:13:13]} Qb7 {[%emt 0:21:26]} 42. Re8+ {[%emt 0:08:23]} Rxe8 {[%emt 0:00:30]} 43. Rxe8+ {[%emt 0:00:02]} Kg7 {[%emt 0:00:30]} 44. Qg8+ {[%emt 0:00:50]} Kh6 {[%emt 0:01:00]} 45. Qf8+ {[%emt 0:00:30]} 0-1

[Event "World Junior U20 Girls 2018"]
[Site "Gebze"]
[Date "2018.09.07"]
[Round "4"]
[White "Tsolakidou, Stavroula"]
[Black "Ghukasyan, Siranush"]
[Result "1-0"]
[ECO "E06"]
[WhiteElo "2393"]
[BlackElo "2205"]
[Annotator "NA"]
[PlyCount "61"]
[EventDate "2018.09.05"]
[EventType "swiss"]
[EventCountry "TUR"]
[SourceTitle "playchess.com"]
[Source "ChessBase"]
[SourceQuality "1"]
[TimeControl "40/5400+30:1800+30"]

1. d4 {[%emt 0:03:30]} d5 {[%emt 0:00:30]} 2. c4 {[%emt 0:00:00]} e6 {[%emt 0:00:30]} 3. Nf3 {[%emt 0:00:00]} Nf6 {[%emt 0:00:00]} 4. g3 {[%emt 0:00:30]} Bb4+ {[%emt 0:00:00]} 5. Bd2 {[%emt 0:00:30]} Be7 {[%emt 0:00:00]} 6. Bg2 {[%emt 0:00:00]} O-O {[%emt 0:01:00]} 7. O-O {[%emt 0:00:00] LiveBook: 3286 Partien} c6 {[%emt 0:00:00]} 8. Qc2 {[%emt 0:00:00]} b6 {[%emt 0:00:00]} 9. Bf4 {[%emt 0:00:00]} Bb7 {[%emt 0:01:30]} 10. Nbd2 {[%emt 0:00:30]} dxc4 $146 {[%emt 0:05:30] E06: Closed Catalan: Early deviations} ({Predecessor:} 10... Nh5 11. Be5 Nd7 12. cxd5 cxd5 13. Bc7 Qe8 14. Rfc1 Rc8 15. Qd1 Nc5 16. Be5 Nd7 17. e3 Nhf6 18. Bf1 Nxe5 19. Nxe5 {1-0 (57) Istratescu,A (2645)-Hammer,J (2610) Eretria 2011}) 11. Nxc4 {[%emt 0:01:30]} Nd5 {[%emt 0:00:30]} 12. Bd2 {[%emt 0:09:30]} c5 {[%emt 0:02:30]} 13. dxc5 {[%emt 0:06:30]} Bxc5 {[%emt 0:00:30]} 14. Ng5 {[%emt 0:06:30]} g6 {[%emt 0:02:30]} 15. Qe4 {[%emt 0:05:30]} Qe7 {[%emt 0:15:30]} 16. Qh4 {[%emt 0:22:30]} f6 {[%emt 0:15:30]} 17. Ne4 {[%emt 0:00:30]} Nd7 {[%emt 0:02:30]} 18. Nxc5 $14 {[%emt 0:09:30]} Nxc5 {[%emt 0:03:30]} 19. e4 {[%emt 0:04:30]} Nc7 {[%emt 0:00:30]} 20. Bh6 {[%emt 0:00:30]} Rf7 {[%emt 0:05:30]} 21. Rfd1 {[%emt 0:04:30]} Rd8 {[%emt 0:09:30]} 22. e5 {[%emt 0:00:30]} g5 {[%emt 0:19:30]} 23. Qg4 {[%emt 0:07:54]} Bxg2 {[%emt 0:00:20]} 24. Kxg2 {[%emt 0:00:06]} f5 {[%emt 0:03:30]} 25. Qh5 {[%emt 0:03:02]} Rxd1 {[%emt 0:05:03]} 26. Rxd1 {[%emt 0:00:06]} Ne8 {[%emt 0:06:14]} 27. Bxg5 {[%emt 0:04:17]} Qb7+ {[%emt 0:00:30]} 28. Kg1 {[%emt 0:00:00]} Ne4 {[%emt 0:00:00]} 29. Rd8 {[%emt 0:02:00]} Qc6 {[%emt 0:00:25]} 30. Nd6 {[%emt 0:00:10]} N4xd6 {[%emt 0:01:38]} 31. exd6 {[%emt 0:00:05]} 1-0

[Event "World Junior U20 Girls 2018"]
[Site "Gebze"]
[Date "2018.09.07"]
[Round "4"]
[White "Zhu, Jiner"]
[Black "Ozbay, Ece"]
[Result "1/2-1/2"]
[ECO "B48"]
[WhiteElo "2364"]
[BlackElo "2114"]
[Annotator "NA"]
[PlyCount "67"]
[EventDate "2018.09.05"]
[EventType "swiss"]
[EventCountry "TUR"]
[SourceTitle "playchess.com"]
[Source "ChessBase"]
[SourceQuality "1"]
[TimeControl "40/5400+30:1800+30"]

1. e4 {[%emt 0:00:30]} c5 {[%emt 0:00:30]} 2. Nf3 {[%emt 0:00:00]} e6 {[%emt 0:00:30]} 3. d4 {[%emt 0:00:00]} cxd4 {[%emt 0:00:30]} 4. Nxd4 {[%emt 0:00:30]} Nc6 {[%emt 0:00:00]} 5. Nc3 {[%emt 0:00:00]} Qc7 {[%emt 0:00:00]} 6. Be3 {[%emt 0:00:00]} a6 {[%emt 0:00:00]} 7. a3 {[%emt 0:00:00]} Nf6 {[%emt 0:00:00]} 8. g4 {[%emt 0:00:00] B48: Sizilianisch (Paulsen-Variante)} (8. f4 d6 9. Qf3 Nxd4 10. Bxd4 b5 11. Bd3 Bb7 12. Bxf6 gxf6 13. f5 Be7 14. O-O Qc5+ 15. Kh1 h5 16. fxe6 fxe6 17. a4 {1-0 (32) Grischuk,A (2783)-Cori Tello,J (2641) Tbilisi 2017}) 8... h6 {[%emt 0:02:30]} 9. Be2 {[%emt 0:01:30]} Be7 {[%emt 0:01:30]} 10. Qd2 {[%emt 0:00:30]} Ne5 $146 {[%emt 0:02:30]} ({Vorgänger:} 10... b5 11. f3 Bb7 12. h4 Ne5 13. Rg1 Nc4 14. Bxc4 Qxc4 15. Nb3 a5 16. Qd3 Qxd3 17. cxd3 {½-½ (55) Vydeslaver,A (2480)-Tunik,G (2475) Beersheba 1996}) 11. Rg1 {[%emt 0:02:30]} b5 {[%emt 0:02:30]} 12. f4 {[%emt 0:07:30]} Nc4 {[%emt 0:01:30]} 13. Bxc4 {[%emt 0:00:00]} Qxc4 {[%emt 0:00:30]} 14. e5 {[%emt 0:08:00]} Nd5 {[%emt 0:01:30]} 15. Nxd5 {[%emt 0:00:30]} Qxd5 {[%emt 0:01:30]} 16. O-O-O {[%emt 0:00:00]} Bb7 {[%emt 0:00:30]} 17. Kb1 {[%emt 0:02:00]} Rc8 {[%emt 0:05:30]} 18. Nf5 {[%emt 0:07:30]} g6 {[%emt 0:03:30]} 19. Qc1 {[%emt 0:05:30]} Qc4 {[%emt 0:05:30]} 20. Rd4 $16 {[%emt 0:02:30]} Qe2 {[%emt 0:02:30]} 21. Nxe7 {[%emt 0:06:30]} Kxe7 {[%emt 0:00:30]} 22. Rd2 {[%emt 0:09:30]} Qc4 {[%emt 0:01:30]} 23. Rd4 {[%emt 0:06:30]} Qe2 {[%emt 0:04:30]} 24. Rgd1 {[%emt 0:00:30]} Bd5 {[%emt 0:02:30]} 25. f5 {[%emt 0:03:30]} Rc4 {[%emt 0:05:30]} 26. b3 {[%emt 0:08:30]} Rc3 {[%emt 0:02:30]} 27. Bd2 {[%emt 0:01:30]} Rc6 {[%emt 0:02:30]} 28. Ba5 {[%emt 0:10:48]} Rhc8 {[%emt 0:06:30]} 29. f6+ {[%emt 0:02:44]} Ke8 {[%emt 0:00:30]} 30. c4 {[%emt 0:02:58]} g5 {[%emt 0:04:30]} 31. Qd2 {[%emt 0:05:49]} Qxd2 {[%emt 0:02:30]} 32. R1xd2 {[%emt 0:00:00]} bxc4 {[%emt 0:00:30]} 33. bxc4 {[%emt 0:00:08]} Rxc4 {[%emt 0:00:30]} 34. Rxc4 {[%emt 0:00:30]} 1/2-1/2

[Event "World Junior U20 Girls 2018"]
[Site "Gebze"]
[Date "2018.09.07"]
[Round "4"]
[White "Hojjatova, Aydan"]
[Black "Salah, Nadezhda"]
[Result "1-0"]
[ECO "A00"]
[WhiteElo "2356"]
[BlackElo "1918"]
[Annotator "NA"]
[PlyCount "53"]
[EventDate "2018.09.05"]
[EventType "swiss"]
[EventCountry "TUR"]
[SourceTitle "playchess.com"]
[Source "ChessBase"]
[SourceQuality "1"]
[TimeControl "40/5400+30:1800+30"]

1. b4 {[%emt 0:00:30]} e5 {[%emt 0:01:30]} 2. Bb2 {[%emt 0:00:30]} Bxb4 {[%emt 0:00:30]} 3. Bxe5 {[%emt 0:00:30]} Nf6 {[%emt 0:00:00]} 4. Nf3 {[%emt 0:00:00]} d5 {[%emt 0:04:00]} 5. e3 {[%emt 0:00:00]} O-O {[%emt 0:02:30]} 6. c4 {[%emt 0:03:30]} c5 {[%emt 0:02:30]} 7. a3 {[%emt 0:05:30]} Ba5 {[%emt 0:00:30]} 8. cxd5 {[%emt 0:01:30]} Nxd5 {[%emt 0:00:30]} 9. Be2 {[%emt 0:03:30]} Nc6 {[%emt 0:00:30]} 10. Bb2 {[%emt 0:00:00]} Bg4 {[%emt 0:11:30]} 11. O-O {[%emt 0:01:00]} Qe7 {[%emt 0:06:30]} 12. Qa4 {[%emt 0:13:30]} Bh5 {[%emt 0:13:30]} 13. Rc1 {[%emt 0:01:30]} Bb6 {[%emt 0:11:30]} 14. Nc3 {[%emt 0:05:30]} Nxc3 {[%emt 0:02:30]} 15. Bxc3 {[%emt 0:00:30]} Bc7 $11 {[%emt 0:03:30]} 16. Rab1 {[%emt 0:08:30]} Rab8 {[%emt 0:04:30]} 17. Re1 {[%emt 0:06:30]} Qd6 {[%emt 0:10:30]} 18. Qh4 {[%emt 0:03:30]} Bg6 {[%emt 0:01:30]} 19. Rbc1 {[%emt 0:01:30]} b5 {[%emt 0:02:08]} 20. d4 {[%emt 0:00:30]} c4 {[%emt 0:02:30]} 21. Bb2 {[%emt 0:07:30]} Rfe8 {[%emt 0:03:30]} 22. Red1 {[%emt 0:02:30]} Ne7 {[%emt 0:02:51]} 23. Ne5 {[%emt 0:05:30]} f5 {[%emt 0:02:53]} 24. d5 {[%emt 0:05:30]} Ba5 {[%emt 0:01:36]} 25. Qd4 {[%emt 0:01:30]} Bb6 {[%emt 0:00:29]} 26. Qc3 {[%emt 0:01:30]} Bc7 {[%emt 0:04:47]} 27. Ng4 {[%emt 0:00:30]} 1-0

[Event "World Junior U20 Girls 2018"]
[Site "Gebze"]
[Date "2018.09.07"]
[Round "4"]
[White "Antova, Gabriela"]
[Black "Ivana Maria, Furtado"]
[Result "1-0"]
[ECO "D38"]
[WhiteElo "2292"]
[BlackElo "2144"]
[Annotator "NA"]
[PlyCount "85"]
[EventDate "2018.09.05"]
[EventType "swiss"]
[EventCountry "TUR"]
[SourceTitle "playchess.com"]
[Source "ChessBase"]
[SourceQuality "1"]
[TimeControl "40/5400+30:1800+30"]

1. d4 {[%emt 0:00:30]} Nf6 {[%emt 0:01:30]} 2. c4 {[%emt 0:00:30]} e6 {[%emt 0:00:30]} 3. Nf3 {[%emt 0:00:00]} d5 {[%emt 0:00:30]} 4. Nc3 {[%emt 0:00:00]} Bb4 {[%emt 0:00:30]} 5. Bg5 {[%emt 0:00:30]} Nbd7 {[%emt 0:00:30]} 6. cxd5 {[%emt 0:00:30]} exd5 {[%emt 0:00:30]} 7. e3 {[%emt 0:00:30]} c5 {[%emt 0:00:30]} 8. Bd3 {[%emt 0:00:30]} Qa5 {[%emt 0:01:30]} 9. Qc2 {[%emt 0:00:30]} c4 {[%emt 0:00:30]} 10. Bf5 {[%emt 0:00:30]} g6 {[%emt 0:01:30]} 11. Bxd7+ {[%emt 0:01:30]} Nxd7 {[%emt 0:00:30]} 12. O-O {[%emt 0:01:30]} O-O {[%emt 0:06:30]} 13. a3 {[%emt 0:00:30]} Bxc3 {[%emt 0:01:30]} 14. bxc3 {[%emt 0:00:30]} Re8 {[%emt 0:00:30]} 15. Nd2 {[%emt 0:09:30]} Nb6 {[%emt 0:02:30] D38: Queen's Gambit Declined: Ragozin Defence (4 Nf3 Bb4)} 16. f3 {[%emt 0:00:30]} Bd7 {[%emt 0:17:30] LiveBook: 11 Games} 17. Bh6 {[%emt 0:02:30]} Qa4 $146 {[%emt 0:03:30]} ({Predecessor:} 17... Na4 18. Rfc1 Re6 19. Bf4 f5 20. Rab1 Bc6 21. Rb4 b5 22. Nf1 Qd8 23. Rcb1 {½-½ (38) Gonzales,J (2469)-Van Hoolandt,P (2231) Dresden 2008}) 18. Qb1 {[%emt 0:11:30]} Qa5 {[%emt 0:00:30]} 19. Qb4 {[%emt 0:03:30]} Qxb4 {[%emt 0:00:30]} 20. axb4 {[%emt 0:00:00]} Na4 {[%emt 0:08:30]} 21. Rac1 {[%emt 0:02:00]} Nb2 {[%emt 0:01:30]} 22. e4 {[%emt 0:03:30]} Nd3 {[%emt 0:10:30]} 23. exd5 $14 {[%emt 1:00:30]} Nxc1 {[%emt 0:08:30]} 24. Rxc1 {[%emt 0:00:30]} Bf5 {[%emt 0:00:30]} 25. Nxc4 {[%emt 0:00:00]} Rad8 {[%emt 0:01:30]} 26. Ne3 {[%emt 0:00:00]} b5 {[%emt 0:01:30]} 27. Bf4 {[%emt 0:00:00]} f6 {[%emt 0:05:30]} 28. h4 {[%emt 0:00:00]} Bd3 {[%emt 0:03:30]} 29. Kf2 {[%emt 0:00:00]} Kf7 {[%emt 0:01:42]} 30. Bc7 {[%emt 0:00:00]} Rd7 {[%emt 0:01:50]} 31. d6 {[%emt 0:00:00]} Rc8 {[%emt 0:04:16]} 32. Ke1 {[%emt 0:00:00]} Rcxc7 {[%emt 0:05:17]} 33. dxc7 {[%emt 0:00:00]} Rxc7 {[%emt 0:00:30]} 34. Kd2 {[%emt 0:00:00]} Bc4 {[%emt 0:00:50]} 35. Ra1 {[%emt 0:00:00]} Be6 {[%emt 0:01:14]} 36. Ra5 {[%emt 0:00:00]} Rb7 {[%emt 0:00:39]} 37. Kd3 {[%emt 0:00:00]} Bc8 {[%emt 0:02:39]} 38. d5 {[%emt 0:00:00]} Rc7 {[%emt 0:01:47]} 39. Kd4 {[%emt 0:00:00]} a6 {[%emt 0:00:12]} 40. c4 {[%emt 0:00:00]} bxc4 {[%emt 0:00:00]} 41. Rc5 {[%emt 0:00:00]} Rxc5 {[%emt 0:03:34]} 42. bxc5 {[%emt 0:00:00]} a5 {[%emt 0:01:30]} 43. Nxc4 {[%emt 0:00:00]} 1-0

[Event "World Junior U20 Girls 2018"]
[Site "Gebze"]
[Date "2018.09.07"]
[Round "4"]
[White "Sieber, Fiona"]
[Black "Celik, Eylul"]
[Result "1-0"]
[ECO "B40"]
[WhiteElo "2277"]
[BlackElo "2014"]
[Annotator "ChessBase"]
[PlyCount "103"]
[EventDate "2018.09.05"]
[EventType "swiss"]
[EventCountry "TUR"]
[SourceTitle "playchess.com"]
[Source "ChessBase"]
[SourceQuality "1"]
[TimeControl "40/5400+30:1800+30"]

1. e4 {[%emt 0:00:30]} c5 {[%emt 0:00:30]} 2. Nf3 {[%emt 0:00:00]} e6 {[%emt 0:00:30]} 3. d4 {[%emt 0:00:00]} cxd4 {[%emt 0:00:30]} 4. Nxd4 {[%emt 0:00:30]} Qb6 {[%emt 0:00:00]} 5. Nc3 {[%emt 0:01:30]} a6 {[%emt 0:00:00]} 6. Be2 {[%emt 0:04:30]} Qc7 {[%emt 0:04:30]} 7. a3 {[%emt 0:05:30]} Nf6 {[%emt 0:00:30]} 8. O-O {[%emt 0:00:30]} Be7 {[%emt 0:03:30]} 9. f4 {[%emt 0:06:30]} d6 {[%emt 0:00:30]} 10. Kh1 {[%emt 0:03:30]} Nbd7 {[%emt 0:06:30]} 11. Bf3 {[%emt 0:00:30]} Rb8 {[%emt 0:05:30]} 12. Qe1 {[%emt 0:06:30]} O-O {[%emt 0:06:30]} 13. g4 {[%emt 0:01:30]} Nb6 {[%emt 0:00:30]} 14. g5 {[%emt 0:02:30]} Ne8 {[%emt 0:02:30]} 15. Bg2 {[%emt 0:11:30]} e5 {[%emt 0:02:30]} 16. Nf5 {[%emt 0:01:30]} exf4 {[%emt 0:01:30]} 17. Bxf4 {[%emt 0:00:30]} Be6 {[%emt 0:02:30]} 18. Rd1 {[%emt 0:08:30]} g6 {[%emt 0:08:30]} 19. Nxe7+ {[%emt 0:04:30]} Qxe7 {[%emt 0:00:30]} 20. Qg3 {[%emt 0:00:30]} Rd8 {[%emt 0:08:30]} 21. b3 {[%emt 0:00:30]} Qc7 {[%emt 0:01:30]} 22. Rd2 {[%emt 0:03:30]} Rc8 {[%emt 0:05:30]} 23. Ne2 {[%emt 0:01:30]} Qc5 {[%emt 0:01:30]} 24. Be3 {[%emt 0:04:30]} Qc7 {[%emt 0:04:30]} 25. Rfd1 {[%emt 0:00:30]} Nd7 {[%emt 0:00:30]} 26. Bf4 {[%emt 0:03:30]} Ne5 {[%emt 0:02:30]} 27. c4 {[%emt 0:06:30]} Qc5 {[%emt 0:02:30]} 28. Bh3 {[%emt 0:06:21]} Ng7 {[%emt 0:06:30]} 29. Rxd6 {[%emt 0:00:30]} Nh5 {[%emt 0:04:09]} 30. Qc3 {[%emt 0:04:07]} Bxh3 {[%emt 0:04:09]} 31. Qxh3 {[%emt 0:02:08]} Qf2 {[%emt 0:03:10]} 32. Bxe5 {[%emt 0:01:15]} Qxe2 {[%emt 0:00:19]} 33. Qd3 {[%emt 0:00:25]} Qg4 {[%emt 0:06:48]} 34. Rg1 {[%emt 0:02:21]} Qh4 {[%emt 0:00:19]} 35. Bc3 {[%emt 0:02:41]} Rce8 {[%emt 0:03:31]} 36. e5 {[%emt 0:01:24]} Qf4 {[%emt 0:02:02]} 37. Rd5 {[%emt 0:02:23]} Qf2 {[%emt 0:01:28]} 38. Rg2 {[%emt 0:01:08]} Qb6 {[%emt 0:01:25]} 39. Bd4 {[%emt 0:01:13]} Qe6 {[%emt 0:00:22]} 40. Qf3 {[%emt 0:00:00]} Rd8 {[%emt 0:00:00]} 41. Rd2 {[%emt 0:06:04]} Qc6 {[%emt 0:02:48]} 42. Kg2 {[%emt 0:02:30]} Rxd5 {[%emt 0:03:30]} 43. cxd5 {[%emt 0:00:30]} Qxd5 {[%emt 0:00:30]} 44. Qxd5 {[%emt 0:00:30]} Nf4+ {[%emt 0:00:00]} 45. Kf3 {[%emt 0:00:30]} Nxd5 {[%emt 0:00:00]} 46. Bc5 {[%emt 0:00:30]} Rd8 {[%emt 0:00:00]} 47. Rd3 {[%emt 0:00:30]} f5 {[%emt 0:01:00]} 48. exf6 {[%emt 0:01:30]} b6 {[%emt 0:02:30]} 49. Be7 {[%emt 0:00:30]} Rd7 {[%emt 0:00:30]} 50. Ke4 {[%emt 0:00:30]} Rxe7+ {[%emt 0:00:00]} 51. fxe7 {[%emt 0:00:30]} Nxe7 {[%emt 0:00:00]} 52. Rd6 {[%emt 0:00:30]} 1-0